{"text_format":"1","workbook":"xlsx","n_sheets":2,"sheets":["Best_Buys","Harder_Best_Buys"],"not_rendered":{"charts":0,"images":8,"macros":1,"external_links":0,"defined_names":4,"comments":0,"pivot_tables":0},"unopened":[],"bounds":{"document_bytes":16777216,"sheet_cells":100000,"rows_first":2000,"rows_last":500,"rows_between":2000,"halvings":0,"cell_chars":16384,"cell_head_chars":4096},"cells_cut":0,"cells_raw":0,"read":"whole","date_system":"1900"}

{"sheet":"Best_Buys","index":0,"n_rows":52,"n_cols":60,"rows_kept":52,"cut":false,"hidden":false,"merged":[[51,24,51,31],[51,34,51,41],[49,24,49,31],[49,34,49,41],[45,52,45,57],[50,24,50,29],[50,30,50,31],[50,34,50,39],[50,40,50,41],[44,38,44,39],[45,4,45,15],[45,16,45,18],[45,59,45,64],[47,24,47,31],[47,34,47,41],[47,59,47,64],[29,59,29,64],[40,52,40,57],[31,59,31,64],[33,24,33,31],[33,34,33,41],[34,30,34,31],[34,40,34,41],[34,24,34,29],[34,34,34,39],[31,34,31,41],[31,24,31,31],[35,24,35,31],[35,34,35,41],[38,52,38,57],[39,52,39,57],[57,13,57,26],[55,13,55,26],[6,52,6,57],[7,52,7,57],[10,52,10,57],[11,4,11,15],[13,4,13,15],[13,52,13,57],[11,16,11,18],[13,16,13,18],[28,38,28,39],[29,4,29,15],[29,16,29,18],[29,52,29,57],[43,4,43,15],[43,16,43,18],[13,59,13,64],[15,59,15,64],[18,30,18,31],[18,40,18,41],[17,34,17,41],[17,24,17,31],[1,1,5,42],[22,52,22,57],[23,52,23,57],[24,52,24,57],[27,4,27,15],[27,16,27,18],[19,24,19,31],[19,34,19,41],[18,24,18,29],[18,34,18,39],[15,27,15,29],[15,35,15,37]]}
[]
[null,"Level 2 Best Buys Practice                                                                                                                        Created by Mr.Lafferty@mathsrevision.com                                                                                                                                             "]
[]
[]
[]
[]
[null,null,null,null,null,null,null,null,null,null,null,null,null,null,null,null,null,null,null,null,null,null,null,null,null,null,null,null,null,null,null,null,null,null,null,null,null,null,null,null,null,null,null,null,null,null,null,null,null,null,null,{"$f":"12*ROUND(RAND()*(17-7)+7,0)/100","v":1.2},"Full supermarket 1",null,null,null,null,null,{"$f":"AZ7","v":1.2}]
[null,null,"Q1. ",null,"Owen visits two supermarkets Prescos and Basda which have special deals on IRN - BRU. ",null,null,null,null,null,null,null,null,null,null,null,null,null,null,null,null,null,null,null,null,null,null,null,null,null,null,null,null,null,null,null,null,null,null,null,null,null,null,null,null,null,null,null,null,null,null,{"$f":"ROUND(RAND()*(4-2)+2,0)","v":4},"Fraction Discount"]
[]
[null,null,null,null,"From which supermarket should he buy the IRN - BRU from OR are they both the same price."]
[null,null,null,null,null,null,null,null,null,null,null,null,null,null,null,null,null,null,null,null,null,null,null,null,null,null,null,null,null,null,null,null,null,null,null,null,null,null,null,null,null,null,null,null,null,null,null,null,null,null,null,{"$f":"AZ7/AZ8*(AZ8-1)","v":0.89999999999999991},"Sale Price 1"]
[null,null,null,null,"Pescos : Deal price is £",null,null,null,null,null,null,null,null,null,null,null,null,null,null,null,null,null,null,null,null,null,null,null,null,null,null,null,null,null,null,null,null,null,null,null,null,null,null,null,null,null,null,null,null,null,null,{"$f":"ROUND(RAND()*(1-0)+0,0)","v":1}]
[null,null,null,null,null,null,null,null,null,null,null,null,null,null,null,null,null,null,null,null,null,null,null,null,null,null,null,null,null,null,null,null,null,null,null,null,null,null,null,null,null,null,null,null,null,null,null,null,null,null,null,{"$f":"ROUND(IF(AZ12=0,(AZ11+ROUND(RAND()*(0.03-0.01)+0.01,2)),AZ11-(ROUND(RAND()*(0.03-0.01)+0.01,2))),2)","v":0.87}]
[null,null,null,null,"Basda : Deal price is £",null,null,null,null,null,null,null,null,null,null,null,null,null,null,null,null,null,null,null,null,null,null,null,null,null,null,null,null,null,null,null,null,null,null,null,null,null,null,null,null,null,null,null,null,null,null,{"$f":"ROUND(RAND()*(4-1)+1,0)*10","v":40},"% discount super2",null,null,null,null,null,{"$f":"ROUND(100/AZ15*AZ13,1)","v":1.5},"Full supermarket 2"]
[null,null,null,null,null,null,null,null,null,null,null,null,null,null,null,null,null,null,null,null,null,null,null,null,null,null,null,null,null,null,null,null,null,null,null,null,null,null,null,null,null,null,null,null,null,null,null,null,null,null,null,{"$f":"100-AZ14","v":60},null,null,null,null,null,null,{"$f":"AZ14/100*BG14","v":0.60000000000000009},"Discount"]
[null,null,null,null,null,null,null,null,null,null,null,null,null,null,null,null,null,null,null,null,null,null,null,null,null,null,null,"500 ml",null,null,null,null,null,null,null,"500 ml",null,null,null,null,null,null,null,null,null,null,null,null,null,null,null,null,null,null,null,null,null,null,{"$f":"BG14-BG15","v":0.89999999999999991},"Sale Price 2"]
[]
[null,null,null,null,null,null,null,null,null,null,null,null,null,null,null,null,null,null,null,null,null,null,null,null,{"$f":"\"Pesco's 1\"","v":"Pesco's 1"},null,null,null,null,null,null,null,null,null,{"$f":"\"Basda 2\"","v":"Basda 2"}]
[null,null,null,null,null,null,null,null,null,null,null,null,null,null,null,null,null,null,null,null,null,null,null,null,"Normal Price £",null,null,null,null,null,{"$f":"AZ7","v":1.2},null,null,null,"Normal Price £ ",null,null,null,null,null,{"$f":"BG14","v":1.5}]
[null,null,null,null,null,null,null,null,null,null,null,null,null,null,null,null,null,null,null,null,null,null,null,null,{"$f":"\"Now 1/\"&AZ8&\" OFF\"","v":"Now 1/4 OFF"},null,null,null,null,null,null,null,null,null,{"$f":"\"Now \"&AZ14&\" % OFF\"","v":"Now 40 % OFF"}]
[]
[]
[null,null,null,null,null,null,null,null,null,null,null,null,null,null,null,null,null,null,null,null,null,null,null,null,null,null,null,null,null,null,null,null,null,null,null,null,null,null,null,null,null,null,null,null,null,null,null,null,null,null,null,{"$f":"12*ROUND(RAND()*(30-7)+7,0)/100","v":2.64},"Full supermarket 1",null,null,null,null,null,{"$f":"AZ23","v":2.64}]
[null,null,"Q2.",null,"Caitlin visits two supermarkets Norrison and Sainsburgh which have special deals on Oranges. ",null,null,null,null,null,null,null,null,null,null,null,null,null,null,null,null,null,null,null,null,null,null,null,null,null,null,null,null,null,null,null,null,null,null,null,null,null,null,null,null,null,null,null,null,null,null,{"$f":"ROUND(RAND()*(4-2)+2,0)","v":3},"Fraction Discount"]
[null,null,null,null,null,null,null,null,null,null,null,null,null,null,null,null,null,null,null,null,null,null,null,null,null,null,null,null,null,null,null,null,null,null,null,null,null,null,null,null,null,null,null,null,null,null,null,null,null,null,null,{"$f":"AZ23/AZ24*(AZ24-1)","v":1.76},"Sale Price 1"]
[null,null,null,null,"From which supermarket should she buy the Oranges from OR are they both the same price."]
[]
[null,null,null,null,"Norrison : Deal price is £",null,null,null,null,null,null,null,null,null,null,null,null,null,null,null,null,null,null,null,null,null,null,null,null,null,null,null,null,null,null,null,null,null,null,null,null,null,null,null,null,null,null,null,null,null,null,{"$f":"ROUND(RAND()*(1-0)+0,0)","v":0}]
[null,null,null,null,null,null,null,null,null,null,null,null,null,null,null,null,null,null,null,null,null,null,null,null,null,null,null,null,null,null,null,null,null,null,null,null,null,null,null,null,null,null,null,null,null,null,null,null,null,null,null,{"$f":"ROUND(IF(AZ28=0,(AZ25+ROUND(RAND()*(0.03-0.01)+0.01,2)),AZ25-(ROUND(RAND()*(0.03-0.01)+0.01,2))),2)","v":1.78}]
[null,null,null,null,"Sainsburgh : Deal price is £",null,null,null,null,null,null,null,null,null,null,null,null,null,null,null,null,null,null,null,null,null,null,null,null,null,null,null,null,null,null,null,null,null,null,null,null,null,null,null,null,null,null,null,null,null,null,{"$f":"ROUND(RAND()*(4-1)+1,0)*10","v":20},"% discount super2",null,null,null,null,null,{"$f":"ROUND(100/AZ31*AZ29,1)","v":2.2000000000000002},"Full supermarket 2"]
[null,null,null,null,null,null,null,null,null,null,null,null,null,null,null,null,null,null,null,null,null,null,null,null,null,null,null,null,null,null,null,null,null,null,null,null,null,null,null,null,null,null,null,null,null,null,null,null,null,null,null,{"$f":"100-AZ30","v":80},null,null,null,null,null,null,{"$f":"AZ30/100*BG30","v":0.44000000000000006},"Discount"]
[null,null,null,null,null,null,null,null,null,null,null,null,null,null,null,null,null,null,null,null,null,null,null,null,"A bag of 5 oranges",null,null,null,null,null,null,null,null,null,"A bag of 5 oranges",null,null,null,null,null,null,null,null,null,null,null,null,null,null,null,null,null,null,null,null,null,null,null,{"$f":"BG30-BG31","v":1.7600000000000002},"Sale Price 2"]
[]
[null,null,null,null,null,null,null,null,null,null,null,null,null,null,null,null,null,null,null,null,null,null,null,null,{"$f":"\"Supermarket 1\"","v":"Supermarket 1"},null,null,null,null,null,null,null,null,null,{"$f":"\"Supermarket 2\"","v":"Supermarket 2"}]
[null,null,null,null,null,null,null,null,null,null,null,null,null,null,null,null,null,null,null,null,null,null,null,null," Was   £",null,null,null,null,null,{"$f":"AZ23","v":2.64},null,null,null,"Was   £",null,null,null,null,null,{"$f":"BG30","v":2.2000000000000002}]
[null,null,null,null,null,null,null,null,null,null,null,null,null,null,null,null,null,null,null,null,null,null,null,null,{"$f":"\"Now 1/\"&AZ24&\" OFF\"","v":"Now 1/3 OFF"},null,null,null,null,null,null,null,null,null,{"$f":"\"Now \"&AZ30&\" % OFF\"","v":"Now 20 % OFF"}]
[]
[]
[null,null,null,null,null,null,null,null,null,null,null,null,null,null,null,null,null,null,null,null,null,null,null,null,null,null,null,null,null,null,null,null,null,null,null,null,null,null,null,null,null,null,null,null,null,null,null,null,null,null,null,{"$f":"ROUND(RAND()*(2-0.8)+0.8,1)*2","v":2.4},"Full supermarket 1",null,null,null,null,null,{"$f":"AZ39","v":2.4}]
[null,null,"Q3.",null,"Aimee visits two shops Niceland and Auldi which have special deals on oven chips.. ",null,null,null,null,null,null,null,null,null,null,null,null,null,null,null,null,null,null,null,null,null,null,null,null,null,null,null,null,null,null,null,null,null,null,null,null,null,null,null,null,null,null,null,null,null,null,{"$f":"ROUND(RAND()*(8-2)+2,0)*5","v":15},"Fraction Discount"]
[null,null,null,null,null,null,null,null,null,null,null,null,null,null,null,null,null,null,null,null,null,null,null,null,null,null,null,null,null,null,null,null,null,null,null,null,null,null,null,null,null,null,null,null,null,null,null,null,null,null,null,{"$f":"AZ39-AZ40/100*AZ39","v":2.04},"Sale Price 1"]
[null,null,null,null,"From which shop should she buy the oven chips from OR are they both the same price."]
[]
[null,null,null,null,"Norrison : Deal price is £",null,null,null,null,null,null,null,null,null,null,null,null,null,null,null,null,null,null,null,null,null,null,null,null,null,null,null,null,null,null,null,null,null,null,null,null,null,null,null,null,null,null,null,null,null,null,{"$f":"ROUND(RAND()*(1-0)+0,0)","v":1}]
[null,null,null,null,null,null,null,null,null,null,null,null,null,null,null,null,null,null,null,null,null,null,null,null,null,null,null,null,null,null,null,null,null,null,null,null,null,null,null,null,null,null,null,null,null,null,null,null,null,null,null,{"$f":"ROUND(IF(AZ44=0,(AZ41+ROUND(RAND()*(0.03-0.01)+0.01,2)),AZ41-(ROUND(RAND()*(0.03-0.01)+0.01,2))),2)","v":2.0299999999999998}]
[null,null,null,null,"Sainsburgh : Deal price is £",null,null,null,null,null,null,null,null,null,null,null,null,null,null,null,null,null,null,null,null,null,null,null,null,null,null,null,null,null,null,null,null,null,null,null,null,null,null,null,null,null,null,null,null,null,null,{"$f":"ROUND(RAND()*(4-1)+1,0)*10","v":20},"% discount super2",null,null,null,null,null,{"$f":"ROUND(100/AZ47*AZ45,1)","v":2.5},"Full supermarket 2"]
[null,null,null,null,null,null,null,null,null,null,null,null,null,null,null,null,null,null,null,null,null,null,null,null,null,null,null,null,null,null,null,null,null,null,null,null,null,null,null,null,null,null,null,null,null,null,null,null,null,null,null,{"$f":"100-AZ46","v":80},null,null,null,null,null,null,{"$f":"AZ46/100*BG46","v":0.5},"Discount"]
[null,null,null,null,null,null,null,null,null,null,null,null,null,null,null,null,null,null,null,null,null,null,null,null,"2.25 kg bag",null,null,null,null,null,null,null,null,null,"2.25 kg bag",null,null,null,null,null,null,null,null,null,null,null,null,null,null,null,null,null,null,null,null,null,null,null,{"$f":"BG46-BG47","v":2},"Sale Price 2"]
[]
[null,null,null,null,null,null,null,null,null,null,null,null,null,null,null,null,null,null,null,null,null,null,null,null,{"$f":"\"Shop 1\"","v":"Shop 1"},null,null,null,null,null,null,null,null,null,{"$f":"\"Shop 2\"","v":"Shop 2"}]
[null,null,null,null,null,null,null,null,null,null,null,null,null,null,null,null,null,null,null,null,null,null,null,null," Was   £",null,null,null,null,null,{"$f":"AZ39","v":2.4},null,null,null,"Was   £",null,null,null,null,null,{"$f":"BG46","v":2.5}]
[null,null,null,null,null,null,null,null,null,null,null,null,null,null,null,null,null,null,null,null,null,null,null,null,{"$f":"\"Now \"&AZ40&\" % OFF\"","v":"Now 15 % OFF"},null,null,null,null,null,null,null,null,null,{"$f":"\"Now \"&AZ46&\" % OFF\"","v":"Now 20 % OFF"}]

{"sheet":"Harder_Best_Buys","index":1,"n_rows":53,"n_cols":60,"rows_kept":53,"cut":false,"hidden":false,"merged":[[52,40,52,41],[52,27,52,30],[52,31,52,32],[47,59,47,64],[49,27,49,31],[49,37,49,41],[49,59,49,64],[51,27,51,32],[51,37,51,41],[1,1,5,42],[6,52,6,57],[7,52,7,57],[10,52,10,57],[11,4,11,15],[11,16,11,18],[13,4,13,15],[13,16,13,18],[13,52,13,57],[13,59,13,64],[14,27,14,29],[14,35,14,37],[22,52,22,57],[23,52,23,57],[19,33,19,41],[18,33,18,39],[17,33,17,41],[15,59,15,64],[17,24,17,31],[18,30,18,31],[18,40,18,41],[19,24,19,31],[18,24,18,29],[28,4,28,15],[28,16,28,18],[30,4,30,15],[30,16,30,18],[30,52,30,57],[57,13,57,26],[59,13,59,26],[30,59,30,64],[32,59,32,64],[35,40,35,41],[34,27,34,32],[36,27,36,32],[35,30,35,32],[39,52,39,57],[40,52,40,57],[44,52,44,57],[45,4,45,15],[45,16,45,18],[47,4,47,15],[47,16,47,18],[47,52,47,57],[27,52,27,57],[35,27,35,29],[34,37,34,41],[32,37,32,41],[32,27,32,31]]}
[]
[null,"Level 2 Harder Best Buys Practice                                                                                                                        Created by Mr.Lafferty@mathsrevision.com                                                                                                                                             "]
[]
[null,null,null,null,null,null,null,null,null,null,null,null,null,null,null,null,null,null,null,null,null,null,null,null,null,null,null,null,null,null,null,null,null,null,null,null,null,null,null,null,null,null,null,null,null,null,null,null,null,null,null,{"$f":"CONCATENATE(AZ5,BA6)","v":"400g"}]
[null,null,null,null,null,null,null,null,null,null,null,null,null,null,null,null,null,null,null,null,null,null,null,null,null,null,null,null,null,null,null,null,null,null,null,null,null,null,null,null,null,null,null,null,null,null,null,null,null,null,null,{"$f":"AZ6/2","v":400}]
[null,null,null,null,null,null,null,null,null,null,null,null,null,null,null,null,null,null,null,null,null,null,null,null,null,null,null,null,null,null,null,null,null,null,null,null,null,null,null,null,null,null,null,null,null,null,null,null,null,null,null,{"$f":"ROUND(RAND()*(18-4)+4,0)*50","v":800},"g"]
[null,null,null,null,null,null,null,null,null,null,null,null,null,null,null,null,null,null,null,null,null,null,null,null,null,null,null,null,null,null,null,null,null,null,null,null,null,null,null,null,null,null,null,null,null,null,null,null,null,null,null,{"$f":"ROUND(RAND()*(0.8-0.35)+0.35,2)*2","v":1.1399999999999999},"Full supermarket 1"]
[null,null,"Q4. ",null,{"$f":"\"Two local supermarkets have special deals on flour. Sean needs to buy \"&AZ6&\"g of flour to make a cake. \"","v":"Two local supermarkets have special deals on flour. Sean needs to buy 800g of flour to make a cake. "}]
[]
[null,null,null,null,"Calculate which deal is the best OR are they both the same."]
[null,null,null,null,null,null,null,null,null,null,null,null,null,null,null,null,null,null,null,null,null,null,null,null,null,null,null,null,null,null,null,null,null,null,null,null,null,null,null,null,null,null,null,null,null,null,null,null,null,null,null,{"$f":"AZ7/2","v":0.56999999999999995},"Price for 1"]
[null,null,null,null,"Pescos : Deal price is £",null,null,null,null,null,null,null,null,null,null,null,null,null,null,null,null,null,null,null,null,null,null,null,null,null,null,null,null,null,null,null,null,null,null,null,null,null,null,null,null,null,null,null,null,null,null,{"$f":"ROUND(RAND()*(1-0)+0,0)","v":0}]
[null,null,null,null,null,null,null,null,null,null,null,null,null,null,null,null,null,null,null,null,null,null,null,null,null,null,null,null,null,null,null,null,null,null,null,null,null,null,null,null,null,null,null,null,null,null,null,null,null,null,null,{"$f":"ROUND(IF(AZ12=0,(0.7*AZ11),(0.65*AZ11)),2)*2","v":0.8}]
[null,null,null,null,"Basda : Deal price is £"]
[null,null,null,null,null,null,null,null,null,null,null,null,null,null,null,null,null,null,null,null,null,null,null,null,null,null,null,{"$f":"AZ4","v":"400g"},null,null,null,null,null,null,null,{"$f":"AZ4","v":"400g"}]
[null,null,null,null,null,null,null,null,null,null,null,null,null,null,null,null,null,null,null,null,null,null,null,null,null,null,null,null,null,null,null,null,null,null,null,null,null,null,null,null,null,null,null,null,null,null,null,null,null,null,null,null,null,null,null,null,null,null,{"$f":"1.5*AZ13","v":1.2000000000000002},"Sale Price 2"]
[]
[null,null,null,null,null,null,null,null,null,null,null,null,null,null,null,null,null,null,null,null,null,null,null,null,{"$f":"\"Pesco's 1\"","v":"Pesco's 1"},null,null,null,null,null,null,null,null,{"$f":"\"Basda 2\"","v":"Basda 2"}]
[null,null,null,null,null,null,null,null,null,null,null,null,null,null,null,null,null,null,null,null,null,null,null,null,"Normal Price £",null,null,null,null,null,{"$f":"AZ7","v":1.1399999999999999},null,null,"  Normal Price £",null,null,null,null,null,null,{"$f":"AZ13","v":0.8}]
[null,null,null,null,null,null,null,null,null,null,null,null,null,null,null,null,null,null,null,null,null,null,null,null,"Buy 1 get 1 free",null,null,null,null,null,null,null,null,"Buy 1 get one 1/2 price",null,null,null,null,null,null,null,null,null,null,null,null,null,null,null,null,null,{"$f":"CONCATENATE(AZ21,BA22)","v":"125g"}]
[null,null,null,null,null,null,null,null,null,null,null,null,null,null,null,null,null,null,null,null,null,null,null,null,null,null,null,null,null,null,null,null,null,null,null,null,null,null,null,null,null,null,null,null,null,null,null,null,null,null,null,{"$f":"AZ22/2","v":125}]
[null,null,null,null,null,null,null,null,null,null,null,null,null,null,null,null,null,null,null,null,null,null,null,null,null,null,null,null,null,null,null,null,null,null,null,null,null,null,null,null,null,null,null,null,null,null,null,null,null,null,null,{"$f":"ROUND(RAND()*(18-4)+4,0)*50","v":250},"g"]
[null,null,null,null,null,null,null,null,null,null,null,null,null,null,null,null,null,null,null,null,null,null,null,null,null,null,null,null,null,null,null,null,null,null,null,null,null,null,null,null,null,null,null,null,null,null,null,null,null,null,null,{"$f":"ROUND(RAND()*(2.4-1.25)+1.25,1)*2","v":2.6},"Full supermarket 1"]
[null,null,"Q5. ",null,"A supermarket is doing special deals on instant coffee.",null,null,null,null,null,null,null,null,null,null,null,null,null,null,null,null,null,null,null,null,null,null,null,null,null,null,null,null,null,null,null,null,null,null,null,null,null,null,null,null,null,null,null,null,null,null,{"$f":"ROUND(RAND()*(4-1)+1,0)*5","v":10}]
[null,null,null,null,{"$f":"\" Shannon is looking to buy \"&AZ22&\" g worth of coffee.\"","v":" Shannon is looking to buy 250 g worth of coffee."},null,null,null,null,null,null,null,null,null,null,null,null,null,null,null,null,null,null,null,null,null,null,null,null,null,null,null,null,null,null,null,null,null,null,null,null,null,null,null,null,null,null,null,null,null,null,{"$f":"AZ23-AZ24/100*AZ23","v":2.34}]
[null,null,null,null,null,null,null,null,null,null,null,null,null,null,null,null,null,null,null,null,null,null,null,null,null,null,null,null,null,null,null,null,null,null,null,null,null,null,null,null,null,null,null,null,null,null,null,null,null,null,null,{"$f":"AZ22-50","v":200}]
[null,null,null,null,"Calculate which deal is the best OR are they both the same.",null,null,null,null,null,null,null,null,null,null,null,null,null,null,null,null,null,null,null,null,null,null,null,null,null,null,null,null,null,null,null,null,null,null,null,null,null,null,null,null,null,null,null,null,null,null,{"$f":"AZ22-AZ26","v":50}]
[null,null,null,null,null,null,null,null,null,null,null,null,null,null,null,null,null,null,null,null,null,null,null,null,null,null,null,null,null,null,null,null,null,null,null,null,null,null,null,null,null,null,null,null,null,null,null,null,null,null,null,{"$f":"AZ25","v":2.34},"Price for 1"]
[null,null,null,null,"Deal 1 price is £",null,null,null,null,null,null,null,null,null,null,null,null,null,null,null,null,null,null,null,null,null,null,null,null,null,null,null,null,null,null,null,null,null,null,null,null,null,null,null,null,null,null,null,null,null,null,{"$f":"ROUND(RAND()*(1-0)+0,0)","v":0}]
[null,null,null,null,null,null,null,null,null,null,null,null,null,null,null,null,null,null,null,null,null,null,null,null,null,null,null,null,null,null,null,null,null,null,null,null,null,null,null,null,null,null,null,null,null,null,null,null,null,null,null,{"$f":"ROUND(IF(AZ29=0,(2*AZ28+ROUND(RAND()*(0.05-0.01)+0.01,2)),(2*AZ28-ROUND(RAND()*(0.05-0.01)+0.01,2))),2)","v":4.71}]
[null,null,null,null,"Deal 2 price is £"]
[]
[null,null,null,null,null,null,null,null,null,null,null,null,null,null,null,null,null,null,null,null,null,null,null,null,null,null,null,{"$f":"AZ20","v":"125g"},null,null,null,null,null,null,null,null,null,{"$f":"AZ26&\" g\"","v":"200 g"}]
[null,null,null,null,null,null,null,null,null,null,null,null,null,null,null,null,null,null,null,null,null,null,null,null,null,null,null,null,null,null,null,null,null,null,null,null,null,{"$f":"\" + \"&AZ27&\"g Free\"","v":" + 50g Free"}]
[null,null,null,null,null,null,null,null,null,null,null,null,null,null,null,null,null,null,null,null,null,null,null,null,null,null,null,{"$f":"\"Deal 1\"","v":"Deal 1"},null,null,null,null,null,null,null,null,null,{"$f":"\"Deal 2\"","v":"Deal 2"},null,null,null,null,null,null,null,null,null,null,null,null,null,{"$f":"2*AZ28","v":4.68}]
[null,null,null,null,null,null,null,null,null,null,null,null,null,null,null,null,null,null,null,null,null,null,null,null,null,null,null,"Was  £",null,null,{"$f":"AZ23","v":2.6},null,null,null,null,null,null,"Price £",null,null,{"$f":"AZ30","v":4.71},null,null,null,null,null,null,null,null,null,null,{"$f":"AZ30","v":4.71}]
[null,null,null,null,null,null,null,null,null,null,null,null,null,null,null,null,null,null,null,null,null,null,null,null,null,null,null,{"$f":"\"Now \"&AZ24&\" % OFF\"","v":"Now 10 % OFF"}]
[null,null,null,null,null,null,null,null,null,null,null,null,null,null,null,null,null,null,null,null,null,null,null,null,null,null,null,null,null,null,null,null,null,null,null,null,null,null,null,null,null,null,null,null,null,null,null,null,null,null,null,{"$f":"ROUND(RAND()*(2-1)+1,0)*100","v":200}]
[null,null,null,null,null,null,null,null,null,null,null,null,null,null,null,null,null,null,null,null,null,null,null,null,null,null,null,null,null,null,null,null,null,null,null,null,null,null,null,null,null,null,null,null,null,null,null,null,null,null,null,{"$f":"ROUND(RAND()*(9-2)+2,0)","v":4},"l"]
[null,null,null,null,null,null,null,null,null,null,null,null,null,null,null,null,null,null,null,null,null,null,null,null,null,null,null,null,null,null,null,null,null,null,null,null,null,null,null,null,null,null,null,null,null,null,null,null,null,null,null,{"$f":"ROUND(RAND()*(2.4-1.25)+1.25,1)","v":2},"Full supermarket 1"]
[null,null,"Q6. ",null,"A supermarket is doing special deals on Orange juice."]
[null,null,null,null,{"$f":"\" Christopher is looking to buy \"&AZ39&\" litres of Orange juice for an Athletic's competition.\"","v":" Christopher is looking to buy 4 litres of Orange juice for an Athletic's competition."}]
[]
[null,null,null,null,"Calculate which deal is the best OR are they both the same."]
[null,null,null,null,null,null,null,null,null,null,null,null,null,null,null,null,null,null,null,null,null,null,null,null,null,null,null,null,null,null,null,null,null,null,null,null,null,null,null,null,null,null,null,null,null,null,null,null,null,null,null,{"$f":"ROUND(AZ38/1000*AZ40,2)","v":0.4},"Price for 1"]
[null,null,null,null,"Deal 1 price is £",null,null,null,null,null,null,null,null,null,null,null,null,null,null,null,null,null,null,null,null,null,null,null,null,null,null,null,null,null,null,null,null,null,null,null,null,null,null,null,null,null,null,null,null,null,null,{"$f":"ROUND(RAND()*(1-0)+0,0)","v":1}]
[null,null,null,null,null,null,null,null,null,null,null,null,null,null,null,null,null,null,null,null,null,null,null,null,null,null,null,null,null,null,null,null,null,null,null,null,null,null,null,null,null,null,null,null,null,null,null,null,null,null,null,{"$f":"ROUND(IF(AZ46=0,(AZ45+ROUND(RAND()*(0.03-0.01)+0.01,2)),(AZ45-ROUND(RAND()*(0.03-0.01)+0.01,2))),1)","v":0.4}]
[null,null,null,null,"Deal 2 price is £"]
[]
[null,null,null,null,null,null,null,null,null,null,null,null,null,null,null,null,null,null,null,null,null,null,null,null,null,null,null,"1 litre",null,null,null,null,null,null,null,null,null,{"$f":"AZ38&\" ml\"","v":"200 ml"}]
[]
[null,null,null,null,null,null,null,null,null,null,null,null,null,null,null,null,null,null,null,null,null,null,null,null,null,null,null,{"$f":"\"Deal 1\"","v":"Deal 1"},null,null,null,null,null,null,null,null,null,{"$f":"\"Deal 2\"","v":"Deal 2"},null,null,null,null,null,null,null,null,null,null,null,null,null,{"$f":"AZ39*AZ40","v":8}]
[null,null,null,null,null,null,null,null,null,null,null,null,null,null,null,null,null,null,null,null,null,null,null,null,null,null,null,"Price  £",null,null,null,{"$f":"AZ40","v":2},null,null,null,null,null,"Price £",null,null,{"$f":"AZ47","v":0.4},null,null,null,null,null,null,null,null,null,null,{"$f":"AZ39*1000/AZ38*AZ47","v":8}]